{"text_format":"3","workbook":"xlsx","n_sheets":1,"sheets":["Hoja1"],"read":"whole","date_system":"1900"}

{"sheet":"Hoja1","index":0,"n_rows":30,"n_cols":20,"rows_kept":30,"merged":[[18,1,18,3],[18,5,18,7],[18,9,18,11],[18,13,18,15],[18,17,18,19]]}
[null,"Resuelve indicando con un verdadero o falso las tablas siguientes, usando operadores lógicos"]
[]
[{"$nulls":11},"Unidades"]
[null,null,"Mayoria Edad",18,null,null,"Nota Promocion",70,null,null,"Consumo Máximo",500,null,null,"Meta Venta",{"v":35000,"d":"Q35,000.00"},null,null,"Acepta si","Dura"]
[null,"Nombre","Edad","Mayor Edad",null,"Nombre","Nota final","Aprobado",null,"Empleado","Cantidad","Excedido",null,"Vendedor","Cantidad Venta","Llego a Meta",null,"Madera","Tipo","Rechazar Lote"]
[null,"Persona 1",14,null,null,"Alumno 1",90,null,null,"Día 1",{"$f":"RANDBETWEEN(300,1000)","v":940},null,null,"Vendedor 1",{"v":33000,"d":"Q33,000.00"},null,null,"Lote 1","Dura"]
[null,"Persona 2",13,null,null,"Alumno 2",81,null,null,"Día 2",659,null,null,"Vendedor 2",{"v":23000,"d":"Q23,000.00"},null,null,"Lote 2","Suave"]
[null,"Persona 3",18,null,null,"Alumno 3",100,null,null,"Día 3",469,null,null,"Vendedor 3",{"v":11000,"d":"Q11,000.00"},null,null,"Lote 3","Semiduro"]
[null,"Persona 4",16,null,null,"Alumno 4",71,null,null,"Día 4",340,null,null,"Vendedor 4",{"v":25000,"d":"Q25,000.00"},null,null,"Lote 4","Muy suave"]
[null,"Persona 5",34,null,null,"Alumno 5",42,null,null,"Día 5",467,null,null,"Vendedor 5",{"v":35000,"d":"Q35,000.00"},null,null,"Lote 5","Dura"]
[null,"Persona 6",30,null,null,"Alumno 6",35,null,null,"Día 6",820,null,null,"Vendedor 6",{"v":11000,"d":"Q11,000.00"},null,null,"Lote 6","Muy suave"]
[null,"Persona 7",30,null,null,"Alumno 7",91,null,null,"Día 7",586,null,null,"Vendedor 7",{"v":46000,"d":"Q46,000.00"},null,null,"Lote 7","Dura"]
[null,"Persona 8",30,null,null,"Alumno 8",75,null,null,"Día 8",389,null,null,"Vendedor 8",{"v":39000,"d":"Q39,000.00"},null,null,"Lote 8","Muy suave"]
[null,"Persona 9",30,null,null,"Alumno 9",97,null,null,"Día 9",931,null,null,"Vendedor 9",{"v":40000,"d":"Q40,000.00"},null,null,"Lote 9","Semiduro"]
[null,"Persona 10",30,null,null,"Alumno 10",65,null,null,"Día 10",953,null,null,"Vendedor 10",{"v":19000,"d":"Q19,000.00"},null,null,"Lote 10","Blanda"]
[]
[]
[]
[null,"Sin permiso no irá a excursión",{"$nulls":3},"Si habla dos o mas Idiomas",{"$nulls":3},"Se considera clima frio si hay menos de 15° C ",{"$nulls":3},"La ruta es corta si tiene menos de 50 Km",{"$nulls":3},"Familia pequeña si tiene menos de 5 miembros"]
[null,"Nombre","Permiso","Excursión",null,"Nombre","IDIOMAS","Contratacion",null,"Pais","Temperatura","Clima Frio",null,"Viaje","Kms.","Ruta Corta",null,"Vendedor","Integrantes","Familia Grande"]
[null,"Alumno 1","SI",null,null,"Postulante 1","SI",null,null,"País 1",{"$f":"RANDBETWEEN(-10,40)","v":35},null,null,"Viaje 1",{"$f":"RANDBETWEEN(20,300)","v":130},null,null,"Familia 1",{"$f":"RANDBETWEEN(3,12)","v":11}]
[null,"Alumno 2","NO",null,null,"Postulante 2","NO",null,null,"País 2",12,null,null,"Viaje 2",{"$f":"RANDBETWEEN(20,300)","v":97},null,null,"Familia 2",{"$f":"RANDBETWEEN(3,12)","v":7}]
[null,"Alumno 3","SI",null,null,"Postulante 3","SI",null,null,"País 3",-8,null,null,"Viaje 3",233,null,null,"Familia 3",6]
[null,"Alumno 4","SI",null,null,"Postulante 4","SI",null,null,"País 4",39,null,null,"Viaje 4",291,null,null,"Familia 4",10]
[null,"Alumno 5","NO",null,null,"Postulante 5","SI",null,null,"País 5",36,null,null,"Viaje 5",288,null,null,"Familia 5",7]
[null,"Alumno 6","NO",null,null,"Postulante 6","NO",null,null,"País 6",18,null,null,"Viaje 6",173,null,null,"Familia 6",5]
[null,"Alumno 7","NO",null,null,"Postulante 7","SI",null,null,"País 7",0,null,null,"Viaje 7",231,null,null,"Familia 7",12]
[null,"Alumno 8","SI",null,null,"Postulante 8","DOS",null,null,"País 8",36,null,null,"Viaje 8",298,null,null,"Familia 8",4]
[null,"Alumno 9","SI",null,null,"Postulante 9","TRES",null,null,"País 9",5,null,null,"Viaje 9",292,null,null,"Familia 9",12]
[null,"Alumno 10","NO",null,null,"Postulante 10","NO",null,null,"País 10",1,null,null,"Viaje 10",211,null,null,"Familia 10",9]